[Event "Goteborg Open 2024"]
[Site "Goteborgs Schackcentrum, Vegatan 20, Gothenburg, Sweden"]
[Date "2024.08.02"]
[Round "1.6"]
[White "Kallen, Jonas"]
[Black "Gallardo, Guillermo"]
[Result "1-0"]
[TimeControl "15 minutes + 5 seconds per move from move one (Round 1 - 4) / 90 minutes + 30 seconds per move from move one (Round 5 - 8)"]
[WhiteElo "2017"]
[BlackElo "1822"]

1. e4 {[%clk 00:15:05]} {[%emt 00:00:04]} c6 {[%clk 00:15:06]} {[%emt
00:00:05]} 2. d4 {[%clk 00:15:04]} {[%emt 00:00:07]} d5 {[%clk 00:15:08]}
{[%emt 00:00:02]} 3. exd5 {[%clk 00:14:58]} {[%emt 00:00:10]} cxd5 {[%clk
00:15:11]} {[%emt 00:00:02]} 4. Bd3 {[%clk 00:15:01]} {[%emt 00:00:02]} Nc6
{[%clk 00:15:11]} {[%emt 00:00:05]} 5. c3 {[%clk 00:15:03]} {[%emt 00:00:03]}
Nf6 {[%clk 00:15:10]} {[%emt 00:00:06]} 6. h3 {[%clk 00:14:56]} {[%emt
00:00:11]} g6 {[%clk 00:15:10]} {[%emt 00:00:06]} 7. Qc2 {[%clk 00:14:44]}
{[%emt 00:00:16]} Bg7 {[%clk 00:15:06]} {[%emt 00:00:09]} 8. Nf3 {[%clk
00:14:37]} {[%emt 00:00:13]} O-O {[%clk 00:14:56]} {[%emt 00:00:14]} 9. O-O
{[%clk 00:14:24]} {[%emt 00:00:18]} Qc7 {[%clk 00:14:03]} {[%emt 00:00:58]} 10.
Re1 {[%clk 00:13:01]} {[%emt 00:01:29]} Bd7 {[%clk 00:13:37]} {[%emt 00:00:31]}
11. Nbd2 {[%clk 00:12:09]} {[%emt 00:00:56]} Rac8 {[%clk 00:13:17]} {[%emt
00:00:25]} 12. a3 {[%clk 00:11:50]} {[%emt 00:00:25]} Rfe8 {[%clk 00:11:48]}
{[%emt 00:01:33]} 13. Qd1 {[%clk 00:10:34]} {[%emt 00:01:22]} e5 {[%clk
00:10:27]} {[%emt 00:01:25]} 14. dxe5 {[%clk 00:10:22]} {[%emt 00:00:17]} Nxe5
{[%clk 00:10:30]} {[%emt 00:00:02]} 15. Nxe5 {[%clk 00:10:23]} {[%emt
00:00:04]} Rxe5 {[%clk 00:10:33]} {[%emt 00:00:02]} 16. Rxe5 {[%clk 00:10:14]}
{[%emt 00:00:15]} Qxe5 {[%clk 00:10:36]} {[%emt 00:00:01]} 17. Nf3 {[%clk
00:10:09]} {[%emt 00:00:11]} Qd6 {[%clk 00:08:25]} {[%emt 00:02:15]} 18. Be3
{[%clk 00:09:43]} {[%emt 00:00:31]} b6 {[%clk 00:08:01]} {[%emt 00:00:30]} 19.
Bd4 {[%clk 00:09:34]} {[%emt 00:00:14]} Nh5 {[%clk 00:07:35]} {[%emt 00:00:31]}
20. Bxg7 {[%clk 00:09:17]} {[%emt 00:00:21]} Kxg7 {[%clk 00:07:31]} {[%emt
00:00:09]} 21. Nd4 {[%clk 00:08:49]} {[%emt 00:00:32]} Nf4 {[%clk 00:07:02]}
{[%emt 00:00:35]} 22. Qd2 {[%clk 00:08:21]} {[%emt 00:00:33]} Nxd3 {[%clk
00:06:17]} {[%emt 00:00:51]} 23. Qxd3 {[%clk 00:08:24]} {[%emt 00:00:02]} Be6
{[%clk 00:05:31]} {[%emt 00:00:51]} 24. Re1 {[%clk 00:07:13]} {[%emt 00:01:16]}
Re8 {[%clk 00:04:19]} {[%emt 00:01:17]} 25. Nf3 {[%clk 00:06:23]} {[%emt
00:00:54]} Qf4 {[%clk 00:03:10]} {[%emt 00:01:15]} 26. Qd4+ {[%clk 00:06:00]}
{[%emt 00:00:28]} Qxd4 {[%clk 00:03:09]} {[%emt 00:00:06]} 27. Nxd4 {[%clk
00:06:04]} {[%emt 00:00:01]} Kf6 {[%clk 00:03:01]} {[%emt 00:00:13]} 28. f4
{[%clk 00:05:19]} {[%emt 00:00:49]} h5 {[%clk 00:02:52]} {[%emt 00:00:15]} 29.
h4 {[%clk 00:04:53]} {[%emt 00:00:30]} Rc8 {[%clk 00:02:36]} {[%emt 00:00:21]}
30. Kf2 {[%clk 00:04:22]} {[%emt 00:00:36]} a6 {[%clk 00:02:35]} {[%emt
00:00:08]} 31. Re5 {[%clk 00:04:00]} {[%emt 00:00:26]} Rc5 {[%clk 00:02:07]}
{[%emt 00:00:33]} 32. Ke3 {[%clk 00:03:40]} {[%emt 00:00:24]} b5 {[%clk
00:01:54]} {[%emt 00:00:19]} 33. g3 {[%clk 00:03:13]} {[%emt 00:00:32]} Rc4
{[%clk 00:01:35]} {[%emt 00:00:23]} 34. Kd3 {[%clk 00:02:54]} {[%emt 00:00:24]}
Rc5 {[%clk 00:01:12]} {[%emt 00:00:29]} 35. Kc2 {[%clk 00:02:47]} {[%emt
00:00:12]} Bf5+ {[%clk 00:00:49]} {[%emt 00:00:27]} 36. Nxf5 {[%clk 00:02:42]}
{[%emt 00:00:10]} gxf5 {[%clk 00:00:52]} {[%emt 00:00:02]} 37. Kd3 {[%clk
00:02:44]} {[%emt 00:00:03]} Kg6 {[%clk 00:00:35]} {[%emt 00:00:23]} 38. Kd4
{[%clk 00:02:43]} {[%emt 00:00:06]} Rc4+ {[%clk 00:00:20]} {[%emt 00:00:20]} 39.
Kxd5 {[%clk 00:02:39]} {[%emt 00:00:09]} f6 {[%clk 00:00:24]} 40. Re3 {[%clk
00:02:26]} {[%emt 00:00:18]} a5 {[%clk 00:00:21]} {[%emt 00:00:07]} 41. b3
{[%clk 00:02:24]} {[%emt 00:00:07]} Rc8 {[%clk 00:00:22]} {[%emt 00:00:04]} 42.
c4 {[%clk 00:02:24]} {[%emt 00:00:06]} Rd8+ {[%clk 00:00:14]} {[%emt 00:00:13]}
43. Kc5 {[%clk 00:02:25]} {[%emt 00:00:04]} bxc4 {[%clk 00:00:11]} {[%emt
00:00:08]} 44. bxc4 {[%clk 00:02:20]} {[%emt 00:00:11]} 1-0

[ePGN "0.1;DGT LiveChess/2.2.6"]

[Event "Goteborg Open 2024"]
[Site "Goteborgs Schackcentrum, Vegatan 20, Gothenburg, Sweden"]
[Date "2024.08.02"]
[Round "1.7"]
[White "Shchetinin, Oleg"]
[Black "Wickstrom, Carina"]
[Result "0-1"]
[TimeControl "15 minutes + 5 seconds per move from move one (Round 1 - 4) / 90 minutes + 30 seconds per move from move one (Round 5 - 8)"]
[WhiteElo "1742"]
[BlackElo "2013"]

1. d4 {[%clk 00:15:07]} {[%emt 00:00:02]} g6 {[%clk 00:15:07]} {[%emt
00:00:04]} 2. c4 {[%clk 00:15:09]} {[%emt 00:00:03]} Bg7 {[%clk 00:15:11]}
{[%emt 00:00:01]} 3. Nf3 {[%clk 00:15:10]} {[%emt 00:00:03]} d6 {[%clk
00:15:08]} {[%emt 00:00:09]} 4. Nc3 {[%clk 00:14:59]} {[%emt 00:00:15]} e5
{[%clk 00:15:03]} {[%emt 00:00:10]} 5. dxe5 {[%clk 00:14:26]} {[%emt 00:00:38]}
dxe5 {[%clk 00:15:05]} {[%emt 00:00:03]} 6. Qxd8+ {[%clk 00:14:20]} {[%emt
00:00:11]} Kxd8 {[%clk 00:15:09]} {[%emt 00:00:01]} 7. e4 {[%clk 00:13:47]}
{[%emt 00:00:39]} c6 {[%clk 00:14:56]} {[%emt 00:00:17]} 8. g3 {[%clk
00:12:55]} {[%emt 00:00:56]} f6 {[%clk 00:14:08]} {[%emt 00:00:54]} 9. Bg2
{[%clk 00:12:57]} {[%emt 00:00:04]} Be6 {[%clk 00:14:04]} {[%emt 00:00:08]} 10.
b3 {[%clk 00:12:32]} {[%emt 00:00:30]} Nd7 {[%clk 00:13:07]} {[%emt 00:01:02]}
11. O-O {[%clk 00:12:15]} {[%emt 00:00:22]} Nh6 {[%clk 00:12:35]} {[%emt
00:00:36]} 12. Ba3 {[%clk 00:11:03]} {[%emt 00:01:18]} Bf8 {[%clk 00:11:05]}
{[%emt 00:01:36]} 13. Bxf8 {[%clk 00:10:40]} {[%emt 00:00:27]} Rxf8 {[%clk
00:11:08]} {[%emt 00:00:02]} 14. Rad1 {[%clk 00:10:35]} {[%emt 00:00:06]} Kc7
{[%clk 00:11:00]} {[%emt 00:00:17]} 15. Rd2 {[%clk 00:10:08]} {[%emt 00:00:32]}
a5 {[%clk 00:08:57]} {[%emt 00:02:08]} 16. Na4 {[%clk 00:08:45]} {[%emt
00:01:29]} Nf7 {[%clk 00:08:17]} {[%emt 00:00:44]} 17. Rfd1 {[%clk 00:08:36]}
{[%emt 00:00:14]} Rfd8 {[%clk 00:06:23]} {[%emt 00:01:59]} 18. Kf1 {[%clk
00:08:10]} {[%emt 00:00:31]} Bg4 {[%clk 00:05:43]} {[%emt 00:00:45]} 19. h3
{[%clk 00:08:01]} {[%emt 00:00:14]} Bxf3 {[%clk 00:05:34]} {[%emt 00:00:15]} 20.
Bxf3 {[%clk 00:08:03]} {[%emt 00:00:02]} Ng5 {[%clk 00:05:38]} {[%emt
00:00:01]} 21. Bg2 {[%clk 00:07:59]} {[%emt 00:00:09]} Ne6 {[%clk 00:05:36]}
{[%emt 00:00:08]} 22. Rd6 {[%clk 00:07:34]} {[%emt 00:00:28]} Nd4 {[%clk
00:05:18]} {[%emt 00:00:24]} 23. R6xd4 {[%clk 00:06:57]} {[%emt 00:00:41]} exd4
{[%clk 00:05:19]} {[%emt 00:00:05]} 24. Rxd4 {[%clk 00:07:01]} {[%emt
00:00:01]} Ne5 {[%clk 00:04:54]} {[%emt 00:00:31]} 25. Rxd8 {[%clk 00:07:02]}
{[%emt 00:00:03]} Rxd8 {[%clk 00:04:58]} {[%emt 00:00:01]} 26. Ke2 {[%clk
00:07:04]} {[%emt 00:00:03]} Nd3 {[%clk 00:04:22]} {[%emt 00:00:42]} 27. Nc3
{[%clk 00:06:58]} {[%emt 00:00:11]} a4 {[%clk 00:03:46]} {[%emt 00:00:41]} 28.
Nxa4 {[%clk 00:05:38]} {[%emt 00:01:24]} Nc1+ {[%clk 00:03:50]} {[%emt
00:00:02]} 29. Ke3 {[%clk 00:05:40]} {[%emt 00:00:01]} Nxa2 {[%clk 00:03:52]}
{[%emt 00:00:04]} 30. Bf3 {[%clk 00:04:30]} {[%emt 00:01:15]} b6 {[%clk
00:03:18]} {[%emt 00:00:39]} 31. Nb2 {[%clk 00:03:44]} {[%emt 00:00:51]} Nb4
{[%clk 00:03:00]} {[%emt 00:00:25]} 32. Bd1 {[%clk 00:02:09]} {[%emt 00:01:40]}
c5 {[%clk 00:02:53]} {[%emt 00:00:11]} 33. f4 {[%clk 00:01:32]} {[%emt
00:00:42]} Kd6 {[%clk 00:02:16]} {[%emt 00:00:43]} 34. Nd3 {[%clk 00:01:14]}
{[%emt 00:00:23]} Nxd3 {[%clk 00:02:19]} {[%emt 00:00:01]} 35. Kxd3 {[%clk
00:01:18]} {[%emt 00:00:01]} Ra8 {[%clk 00:02:20]} {[%emt 00:00:04]} 36. Bf3
{[%clk 00:00:49]} {[%emt 00:00:32]} Ra2 {[%clk 00:02:18]} {[%emt 00:00:08]} 37.
f5 {[%clk 00:00:25]} {[%emt 00:00:30]} g5 {[%clk 00:01:53]} {[%emt 00:00:30]}
38. h4 {[%clk 00:00:23]} {[%emt 00:00:06]} h6 {[%clk 00:01:30]} {[%emt
00:00:28]} 39. hxg5 {[%clk 00:00:24]} {[%emt 00:00:05]} hxg5 {[%clk 00:01:33]}
{[%emt 00:00:01]} 40. g4 {[%clk 00:00:27]} {[%emt 00:00:02]} Ke5 {[%clk
00:01:33]} {[%emt 00:00:05]} 41. Ke3 {[%clk 00:00:25]} {[%emt 00:00:06]} Ra3
{[%clk 00:01:37]} {[%emt 00:00:03]} 42. Bd1 {[%clk 00:00:29]} Ra1 {[%clk
00:01:37]} {[%emt 00:00:06]} 43. Be2 {[%clk 00:00:26]} {[%emt 00:00:08]} Rh1
{[%clk 00:01:26]} {[%emt 00:00:15]} 44. Bd3 {[%clk 00:00:11]} {[%emt 00:00:20]}
Rh3+ {[%clk 00:01:28]} {[%emt 00:00:03]} 45. Ke2 {[%clk 00:00:16]} {[%emt
00:00:02]} Kd4 {[%clk 00:01:17]} {[%emt 00:00:14]} 46. Bc2 {[%clk 00:00:14]}
{[%emt 00:00:07]} Rg3 {[%clk 00:01:20]} {[%emt 00:00:02]} 0-1

[ePGN "0.1;DGT LiveChess/2.2.6"]

[Event "Goteborg Open 2024"]
[Site "Goteborgs Schackcentrum, Vegatan 20, Gothenburg, Sweden"]
[Date "2024.08.02"]
[Round "1.8"]
[White "Wesslen, Ulf"]
[Black "Olsson, Jonas 1968"]
[Result "1-0"]
[TimeControl "15 minutes + 5 seconds per move from move one (Round 1 - 4) / 90 minutes + 30 seconds per move from move one (Round 5 - 8)"]
[WhiteElo "1953"]
[BlackElo "1741"]

1. e4 {[%clk 00:15:05]} {[%emt 00:00:05]} e5 {[%clk 00:15:03]} {[%emt
00:00:04]} 2. Nf3 {[%clk 00:15:03]} {[%emt 00:00:09]} Nc6 {[%clk 00:15:05]}
{[%emt 00:00:04]} 3. Bc4 {[%clk 00:15:00]} {[%emt 00:00:09]} f5 {[%clk
00:14:52]} {[%emt 00:00:17]} 4. d3 {[%clk 00:14:21]} {[%emt 00:00:45]} fxe4
{[%clk 00:14:08]} {[%emt 00:00:48]} 5. dxe4 {[%clk 00:14:10]} {[%emt 00:00:17]}
h6 {[%clk 00:13:02]} {[%emt 00:01:11]} 6. Nxe5 {[%clk 00:11:37]} {[%emt
00:02:38]} Nf6 {[%clk 00:09:39]} {[%emt 00:03:28]} 7. Ng6 {[%clk 00:10:13]}
{[%emt 00:01:28]} Rh7 {[%clk 00:08:27]} {[%emt 00:01:17]} 8. e5 {[%clk
00:09:19]} {[%emt 00:00:59]} d5 {[%clk 00:07:19]} {[%emt 00:01:14]} 9. Bd3
{[%clk 00:08:29]} {[%emt 00:00:56]} Nxe5 {[%clk 00:05:53]} {[%emt 00:01:29]} 10.
Nxe5 {[%clk 00:08:22]} {[%emt 00:00:13]} Qe7 {[%clk 00:05:02]} {[%emt
00:00:56]} 11. Bg6+ {[%clk 00:07:41]} {[%emt 00:00:45]} Kd8 {[%clk 00:04:45]}
{[%emt 00:00:22]} 12. Qe2 {[%clk 00:07:14]} {[%emt 00:00:32]} Rh8 {[%clk
00:04:30]} {[%emt 00:00:20]} 13. Nf7+ {[%clk 00:07:05]} {[%emt 00:00:14]} Kd7
{[%clk 00:04:06]} {[%emt 00:00:29]} 14. Qxe7+ {[%clk 00:06:48]} {[%emt
00:00:21]} Bxe7 {[%clk 00:03:56]} {[%emt 00:00:16]} 15. Nxh8 {[%clk 00:06:50]}
{[%emt 00:00:03]} c5 {[%clk 00:03:23]} {[%emt 00:00:39]} 16. O-O {[%clk
00:06:45]} {[%emt 00:00:09]} b5 {[%clk 00:03:13]} {[%emt 00:00:15]} 17. Bf4
{[%clk 00:05:47]} {[%emt 00:01:02]} Kc6 {[%clk 00:02:57]} {[%emt 00:00:21]} 18.
Nd2 {[%clk 00:05:13]} {[%emt 00:00:40]} Ba6 {[%clk 00:02:20]} {[%emt 00:00:42]}
19. Nf7 {[%clk 00:05:14]} {[%emt 00:00:04]} c4 {[%clk 00:01:57]} {[%emt
00:00:28]} 20. Rfe1 {[%clk 00:05:11]} {[%emt 00:00:08]} Bc5 {[%clk 00:01:56]}
{[%emt 00:00:07]} 21. Re6+ {[%clk 00:04:44]} {[%emt 00:00:31]} Kb7 {[%clk
00:01:41]} {[%emt 00:00:21]} 22. Rae1 {[%clk 00:04:39]} {[%emt 00:00:09]} Ng4
{[%clk 00:01:19]} {[%emt 00:00:27]} 23. Nd6+ {[%clk 00:04:11]} {[%emt
00:00:33]} Bxd6 {[%clk 00:00:57]} {[%emt 00:00:28]} 24. Rxd6 {[%clk 00:04:10]}
{[%emt 00:00:05]} Rf8 {[%clk 00:00:53]} {[%emt 00:00:09]} 25. Bg3 {[%clk
00:03:57]} {[%emt 00:00:19]} Ka8 {[%clk 00:00:28]} {[%emt 00:00:29]} 26. Rxa6
{[%clk 00:03:49]} {[%emt 00:00:13]} Rxf2 {[%clk 00:00:28]} {[%emt 00:00:04]} 27.
Re7 {[%clk 00:03:37]} {[%emt 00:00:17]} Rxd2 {[%clk 00:00:16]} {[%emt
00:00:17]} 28. Raxa7# {[%clk 00:03:37]} {[%emt 00:00:04]} 1-0

[ePGN "0.1;DGT LiveChess/2.2.6"]

[Event "Goteborg Open 2024"]
[Site "Goteborgs Schackcentrum, Vegatan 20, Gothenburg, Sweden"]
[Date "2024.08.02"]
[Round "1.9"]
[White "Thern, Alfred"]
[Black "Lennerstad, Allan"]
[Result "0-1"]
[TimeControl "15 minutes + 5 seconds per move from move one (Round 1 - 4) / 90 minutes + 30 seconds per move from move one (Round 5 - 8)"]
[WhiteElo "1729"]
[BlackElo "1950"]

1. e4 {[%clk 00:15:05]} {[%emt 00:00:04]} c5 {[%clk 00:15:08]} {[%emt
00:00:03]} 2. c3 {[%clk 00:14:57]} {[%emt 00:00:12]} d5 {[%clk 00:15:04]}
{[%emt 00:00:09]} 3. exd5 {[%clk 00:14:54]} {[%emt 00:00:08]} Qxd5 {[%clk
00:15:03]} {[%emt 00:00:05]} 4. d4 {[%clk 00:14:52]} {[%emt 00:00:08]} cxd4
{[%clk 00:14:54]} {[%emt 00:00:14]} 5. cxd4 {[%clk 00:14:53]} {[%emt 00:00:05]}
Nc6 {[%clk 00:13:50]} {[%emt 00:01:09]} 6. Nf3 {[%clk 00:14:35]} {[%emt
00:00:22]} e6 {[%clk 00:13:45]} {[%emt 00:00:10]} 7. Nc3 {[%clk 00:14:35]}
{[%emt 00:00:06]} Bb4 {[%clk 00:13:42]} {[%emt 00:00:07]} 8. Be2 {[%clk
00:13:57]} {[%emt 00:00:43]} Nge7 {[%clk 00:13:34]} {[%emt 00:00:13]} 9. O-O
{[%clk 00:13:32]} {[%emt 00:00:30]} Qd8 {[%clk 00:13:31]} {[%emt 00:00:09]} 10.
a3 {[%clk 00:12:41]} {[%emt 00:00:56]} Ba5 {[%clk 00:13:28]} {[%emt 00:00:07]}
11. Qd3 {[%clk 00:11:33]} {[%emt 00:01:14]} Ng6 {[%clk 00:12:00]} {[%emt
00:01:33]} 12. Bg5 {[%clk 00:11:01]} {[%emt 00:00:36]} f6 {[%clk 00:11:16]}
{[%emt 00:00:50]} 13. Be3 {[%clk 00:10:49]} {[%emt 00:00:17]} O-O {[%clk
00:11:09]} {[%emt 00:00:11]} 14. Rfd1 {[%clk 00:10:17]} {[%emt 00:00:38]} Nce7
{[%clk 00:11:03]} {[%emt 00:00:11]} 15. b4 {[%clk 00:09:55]} {[%emt 00:00:26]}
Bc7 {[%clk 00:11:02]} {[%emt 00:00:06]} 16. Qd2 {[%clk 00:08:45]} {[%emt
00:01:16]} Nd5 {[%clk 00:10:23]} {[%emt 00:00:44]} 17. Nxd5 {[%clk 00:08:38]}
{[%emt 00:00:12]} exd5 {[%clk 00:10:00]} {[%emt 00:00:28]} 18. Rac1 {[%clk
00:08:22]} {[%emt 00:00:21]} Be6 {[%clk 00:09:34]} {[%emt 00:00:30]} 19. Rc3
{[%clk 00:07:41]} {[%emt 00:00:46]} a5 {[%clk 00:09:26]} {[%emt 00:00:13]} 20.
b5 {[%emt 00:00:13]} Bd6 {[%clk 00:09:18]} {[%emt 00:00:11]} 21. Rdc1 {[%clk
00:07:10]} {[%emt 00:00:30]} Qe7 {[%clk 00:08:50]} {[%emt 00:00:33]} 22. Qb2
{[%clk 00:06:16]} {[%emt 00:00:59]} Rfe8 {[%clk 00:08:15]} {[%emt 00:00:40]} 23.
h4 {[%clk 00:05:58]} {[%emt 00:00:23]} Bd7 {[%clk 00:06:54]} {[%emt 00:01:27]}
24. h5 {[%clk 00:04:31]} {[%emt 00:01:31]} Nf4 {[%clk 00:06:58]} 25. Bxf4
{[%clk 00:04:30]} {[%emt 00:00:06]} Bxf4 {[%clk 00:07:01]} {[%emt 00:00:01]} 26.
Re1 {[%clk 00:04:16]} {[%emt 00:00:20]} Bg4 {[%clk 00:06:05]} {[%emt 00:01:01]}
27. Nh4 {[%clk 00:03:27]} {[%emt 00:00:54]} Bxe2 {[%clk 00:06:01]} {[%emt
00:00:09]} 28. Rc2 {[%clk 00:03:29]} {[%emt 00:00:04]} Qf7 {[%clk 00:05:25]}
{[%emt 00:00:41]} 29. Rcxe2 {[%clk 00:03:07]} {[%emt 00:00:26]} Qxh5 {[%clk
00:05:27]} {[%emt 00:00:02]} 30. g3 {[%clk 00:02:22]} {[%emt 00:00:51]} Bd6
{[%clk 00:05:20]} {[%emt 00:00:12]} 31. Rxe8+ {[%clk 00:02:04]} Rxe8 {[%clk
00:05:23]} {[%emt 00:00:24]} 32. Rxe8+ {[%clk 00:01:50]} {[%emt 00:00:21]} Qxe8
{[%clk 00:05:25]} {[%emt 00:00:02]} 33. Qd2 {[%clk 00:01:39]} {[%emt 00:00:16]}
Qxb5 {[%clk 00:05:11]} {[%emt 00:00:20]} 34. Nf5 {[%clk 00:01:26]} {[%emt
00:00:18]} Qb1+ {[%clk 00:05:07]} {[%emt 00:00:09]} 0-1

[ePGN "0.1;DGT LiveChess/2.2.6"]